fUST/lending_fUST_20250605
["ID","MTS","AMOUNT","RATE_DAILY","PERIOD"]
[364357774,1749079642423,-150.3466422,0.00017169,2]
[364357775,1749079642451,-430.0,0.00017169,2]
[364357776,1749079642474,-430.0,0.00017169,2]
[364357777,1749079642499,-440.0,0.00017169,2]
[364357778,1749079642523,-430.0,0.00017169,2]
[364357779,1749079642549,-440.0,0.00017169,2]
[364357780,1749079642575,-531.92,0.00017169,2]
[364357781,1749079642598,-430.0,0.00017169,2]
[364357782,1749079642622,-430.0,0.00017169,2]
[364357783,1749079642646,-440.0,0.00017169,2]
[364357784,1749079642669,-440.0,0.00017169,2]
[364357785,1749079642700,-519.63,0.00017169,2]
[364357786,1749079642723,-440.0,0.00017169,2]
[364357787,1749079642747,-440.0,0.00017169,2]
[364357788,1749079642772,-440.0,0.00017169,2]
[364357789,1749079642798,-440.0,0.00017169,2]
[364357790,1749079642824,-440.0,0.00017169,2]
[364357791,1749079642849,-440.46,0.00017169,2]
[364357792,1749079642871,-430.0,0.00017169,2]
[364357793,1749079642893,-440.0,0.00017169,2]
[364357794,1749079642914,-430.0,0.00017169,2]
[364357795,1749079642937,-430.0,0.00017169,2]
[364357796,1749079642961,-430.0,0.00017169,2]
[364357797,1749079642986,-440.0,0.00017169,2]
[364357798,1749079643010,-549.42,0.00017169,2]
[364357799,1749079643033,-440.0,0.00017169,2]
[364357800,1749079643055,-430.0,0.00017169,2]
[364357801,1749079643077,-430.0,0.00017169,2]
[364357803,1749079643100,-58.3272955,0.00017169,2]
[364357805,1749079684389,-1419.71,0.00017168,2]
[364357806,1749079684413,-440.0,0.00017168,2]
[364357807,1749079684439,-305.54,0.00017168,2]
[364357808,1749079684466,-440.0,0.00017168,2]
[364357809,1749079684490,-394.75,0.00017168,2]
[364357883,1749079832670,-167.39271526,0.0001707,2]
[364357936,1749079833183,-300.0,0.00017167,2]
[364357938,1749079833193,-232.46328474,0.00017168,2]
[364357941,1749079833210,-207.53671526,0.00017168,2]
[364357943,1749079833219,-292.39,0.00017168,2]
[364357945,1749079833229,-330.0,0.00017168,2]
[364357947,1749079833238,-497.98,0.00017168,2]
[364357949,1749079833248,-154.34,0.00017168,2]
[364357951,1749079833257,-440.0,0.00017168,2]
[364357952,1749079833267,-440.0,0.00017168,2]
[364357954,1749079833276,-440.0,0.00017168,2]
[364357956,1749079833286,-440.0,0.00017168,2]
[364357958,1749079833295,-1015.28,0.00017168,2]
[364357960,1749079833304,-440.0,0.00017169,2]
[364357962,1749079833314,-440.0,0.00017169,2]
[364357964,1749079833323,-430.0,0.00017169,2]
[364357966,1749079833332,-430.0,0.00017169,2]
[364357967,1749079833342,-627.79,0.00017169,2]
[364357969,1749079833352,-430.0,0.00017169,2]
[364357971,1749079833362,-440.0,0.00017169,2]
[364357973,1749079833372,-430.0,0.00017169,2]
[364357975,1749079833381,-1317.35,0.00017169,2]
[364357977,1749079833391,-440.0,0.00017169,2]
[364357979,1749079833401,-965.7,0.00017169,2]
[364357981,1749079833410,-516.88429869,0.00017169,2]
[364357983,1749079833421,-430.0,0.00017169,2]
[364357985,1749079833430,-440.0,0.00017169,2]
[364357987,1749079833439,-440.0,0.00017169,2]
[364357988,1749079833449,-575.21,0.00017169,2]
[364357990,1749079833458,-440.0,0.00017169,2]
[364357992,1749079833468,-440.0,0.00017169,2]
[364357994,1749079833477,-440.0,0.00017169,2]
[364357996,1749079833486,-526.9,0.00017169,2]
[364357998,1749079833496,-430.0,0.00017169,2]
[364358000,1749079833505,-440.0,0.00017169,2]
[364358001,1749079833514,-440.0,0.00017169,2]
[364358003,1749079833524,-378.30002943,0.00017169,2]
[364358004,1749079833534,-440.0,0.00017169,2]
[364358005,1749079833543,-440.0,0.00017169,2]
[364358006,1749079833553,-440.0,0.00017169,2]
[364358007,1749079833562,-205.90855456,0.00017169,2]
[364358008,1749079833571,-155.0,0.00017169,2]
[364358009,1749079833582,-440.0,0.00017169,2]
[364358010,1749079833592,-440.0,0.00017169,2]
[364358011,1749079833603,-506.35,0.00017169,2]
[364358012,1749079833613,-546.33,0.00017169,2]
[364358013,1749079833622,-430.0,0.00017169,2]
[364358014,1749079833632,-440.0,0.00017169,2]
[364358015,1749079833641,-430.0,0.00017169,2]
[364358016,1749079833651,-440.0,0.00017169,2]
[364358017,1749079833660,-440.0,0.00017169,2]
[364358018,1749079833670,-430.0,0.00017169,2]
[364358019,1749079833679,-440.0,0.00017169,2]
[364358020,1749079833689,-430.0,0.00017169,2]
[364358021,1749079833699,-430.0,0.00017169,2]
[364358022,1749079833708,-430.0,0.00017169,2]
[364358023,1749079833718,-430.0,0.00017169,2]
[364358024,1749079833728,-350.80488444,0.0001717,2]
[364358025,1749079833737,-451.08331362,0.0001717,2]
[364358026,1749079833748,-430.0,0.0001717,2]
[364358027,1749079833759,-450.0,0.0001717,2]
[364358028,1749079833769,-430.0,0.0001717,2]
[364358029,1749079833779,-430.0,0.0001717,2]
[364358030,1749079833788,-207.6195247,0.0001717,2]
[364358031,1749079833798,-450.0,0.0001717,2]
[364358032,1749079833807,-420.50975044,0.0001717,2]
[364358033,1749079833817,-450.0,0.0001717,2]
[364358034,1749079833827,-451.20599261,0.0001717,2]
[364358035,1749079833837,-430.0,0.0001717,2]
[364358036,1749079833847,-430.0,0.0001717,2]
[364358037,1749079833857,-430.0,0.0001717,2]
[364358038,1749079833866,-430.0,0.0001717,2]
[364358039,1749079833876,-451.05281378,0.0001717,2]
[364358040,1749079833885,-430.0,0.0001717,2]
[364358041,1749079833895,-450.0,0.0001717,2]
[364358042,1749079833904,-539.12081235,0.0001717,2]
[364358043,1749079833913,-430.0,0.0001717,2]
[364358044,1749079833923,-430.0,0.0001717,2]
[364358045,1749079833932,-447.84,0.0001717,2]
[364358046,1749079833942,-450.0,0.0001717,2]
[364358047,1749079833951,-430.0,0.0001717,2]
[364358048,1749079833960,-430.0,0.0001717,2]
[364358049,1749079833969,-430.0,0.0001717,2]
[364358050,1749079833978,-440.0,0.0001717,2]
[364358051,1749079833988,-430.0,0.0001717,2]
[364358052,1749079833997,-440.0,0.0001717,2]
[364358053,1749079834006,-440.0,0.0001717,2]
[364358054,1749079834017,-440.0,0.0001717,2]
[364358055,1749079834027,-500.0,0.0001717,2]
[364358056,1749079834036,-430.0,0.0001717,2]
[364358057,1749079834045,-430.0,0.0001717,2]
[364358058,1749079834054,-430.0,0.0001717,2]
[364358059,1749079834064,-256.71,0.0001717,2]
[364358060,1749079834073,-430.0,0.0001717,2]
[364358061,1749079834082,-430.0,0.0001717,2]
[364358062,1749079834091,-440.0,0.0001717,2]
[364358064,1749079834102,-430.0,0.0001717,2]
[364358065,1749079834111,-430.0,0.0001717,2]
[364358066,1749079834120,-311.81503509,0.0001717,2]
[364358067,1749079834129,-430.0,0.0001717,2]
[364358068,1749079834139,-430.0,0.0001717,2]
[364358070,1749079834148,-430.0,0.0001717,2]
[364358072,1749079834158,-430.0,0.0001717,2]
[364358073,1749079834167,-430.0,0.0001717,2]
[364358075,1749079834176,-430.0,0.0001717,2]
[364358077,1749079834186,-430.0,0.0001717,2]
[364358079,1749079834196,-430.0,0.0001717,2]
[364358080,1749079834205,-430.0,0.0001717,2]
[364358081,1749079834215,-440.0,0.0001717,2]
[364358082,1749079834225,-430.0,0.0001717,2]
[364358083,1749079834235,-500.0,0.0001717,2]
[364358084,1749079834244,-500.0,0.0001717,2]
[364358085,1749079834383,-490.0,0.0001717,2]
[364358086,1749079834393,-430.0,0.0001717,2]
[364358087,1749079834403,-430.0,0.0001717,2]
[364358088,1749079834413,-430.0,0.0001717,2]
[364358089,1749079834422,-430.0,0.0001717,2]
[364358090,1749079834431,-430.0,0.0001717,2]
[364358091,1749079834441,-430.0,0.0001717,2]
[364358092,1749079834450,-440.0,0.0001717,2]
[364358093,1749079834460,-430.0,0.0001717,2]
[364358094,1749079834469,-430.0,0.0001717,2]
[364358095,1749079834478,-430.0,0.0001717,2]
[364358096,1749079834488,-440.0,0.0001717,2]
[364358097,1749079834498,-430.0,0.0001717,2]
[364358098,1749079834507,-420.0,0.0001717,2]
[364358099,1749079834516,-402.51580347,0.0001717,2]
[364358100,1749079834525,-430.0,0.0001717,2]
[364358101,1749079834535,-440.0,0.0001717,2]
[364358102,1749079834544,-430.0,0.0001717,2]
[364358103,1749079834553,-400.0,0.0001717,2]
[364358104,1749079834563,-430.0,0.0001717,2]
[364358105,1749079834572,-412.19491668,0.0001717,2]
[364358106,1749079834581,-410.0,0.0001717,2]
[364358107,1749079834590,-430.0,0.0001717,2]
[364358108,1749079834600,-440.0,0.0001717,2]
[364358109,1749079834610,-430.0,0.0001717,2]
[364358110,1749079834619,-410.0,0.0001717,2]
[364358111,1749079834629,-430.0,0.0001717,2]
[364358112,1749079834638,-384.9620667,0.0001717,2]
[364358113,1749079834647,-440.0,0.0001717,2]
[364358114,1749079834656,-489.92776016,0.0001717,2]
[364358115,1749079834666,-430.0,0.0001717,2]
[364358116,1749079834675,-466.07571363,0.0001717,2]
[364358117,1749079834684,-430.0,0.0001717,2]
[364358118,1749079834693,-430.0,0.0001717,2]
[364358119,1749079834703,-404.02215706,0.0001717,2]
[364358120,1749079834713,-410.0,0.0001717,2]
[364358121,1749079834722,-440.0,0.0001717,2]
[364358122,1749079834731,-440.0,0.0001717,2]
[364358123,1749079834741,-430.0,0.0001717,2]
[364358124,1749079834754,-440.0,0.0001717,2]
[364358125,1749079834762,-547.54182785,0.0001717,2]
[364358126,1749079834772,-440.0,0.0001717,2]
[364358127,1749079834781,-430.0,0.0001717,2]
[364358128,1749079834791,-373.52021058,0.0001717,2]
[364358129,1749079834800,-430.0,0.0001717,2]
[364358130,1749079834810,-430.0,0.0001717,2]
[364358131,1749079834819,-440.0,0.0001717,2]
[364358132,1749079834829,-440.0,0.0001717,2]
[364358133,1749079834839,-509.7678836,0.0001717,2]
[364358134,1749079834848,-440.0,0.0001717,2]
[364358135,1749079834859,-390.93234264,0.0001717,2]
[364358136,1749079834868,-440.0,0.0001717,2]
[364358137,1749079834878,-303.49,0.0001717,2]
[364358138,1749079834887,-440.0,0.0001717,2]
[364358139,1749079834896,-430.0,0.0001717,2]
[364358140,1749079834905,-375.2185052,0.0001717,2]
[364358141,1749079834915,-430.0,0.0001717,2]
[364358142,1749079834924,-470.0,0.0001717,2]
[364358143,1749079834933,-332.31697522,0.0001717,2]
[364358144,1749079834942,-430.0,0.0001717,2]
[364358145,1749079834953,-450.0,0.0001717,2]
[364358146,1749079834962,-443.92309113,0.0001717,2]
[364358147,1749079834973,-430.0,0.0001717,2]
[364358148,1749079834983,-430.0,0.0001717,2]
[364358149,1749079834992,-440.0,0.0001717,2]
[364358150,1749079835002,-430.0,0.0001717,2]
[364358151,1749079835012,-430.0,0.0001717,2]
[364358152,1749079835021,-430.0,0.0001717,2]
[364358153,1749079835030,-430.0,0.0001717,2]
[364358154,1749079835040,-430.0,0.0001717,2]
[364358155,1749079835049,-430.0,0.0001717,2]
[364358156,1749079835058,-370.0,0.0001717,2]
[364358157,1749079835067,-1000.0,0.0001717,2]
[364358158,1749079835076,-430.0,0.0001717,2]
[364358159,1749079835086,-430.0,0.0001717,2]
[364358160,1749079835094,-430.0,0.0001717,2]
[364358161,1749079835104,-430.0,0.0001717,2]
[364358162,1749079835113,-430.0,0.0001717,2]
[364358163,1749079835122,-430.0,0.0001717,2]
[364358164,1749079835131,-430.0,0.0001717,2]
[364358165,1749079835140,-424.27285031,0.0001717,2]
[364358166,1749079835150,-430.0,0.0001717,2]
[364358167,1749079835159,-430.0,0.0001717,2]
[364358168,1749079835168,-430.0,0.0001717,2]
[364358169,1749079835178,-279.97918446,0.0001717,2]
[364358170,1749079835187,-430.0,0.0001717,2]
[364358171,1749079835196,-430.0,0.0001717,2]
[364358172,1749079835206,-430.0,0.0001717,2]
[364358173,1749079835215,-430.0,0.0001717,2]
[364358174,1749079835225,-416.40078732,0.00017171,2]
[364358175,1749079835336,-13.59921268,0.00017171,2]
[364358176,1749079835346,-368.14577533,0.00017171,2]
[364358177,1749079835356,-430.0,0.00017171,2]
[364358178,1749079835365,-445.52632558,0.00017171,2]
[364358179,1749079835375,-430.0,0.00017171,2]
[364358180,1749079835384,-430.0,0.00017171,2]
[364358181,1749079835393,-443.07922437,0.00017171,2]
[364358182,1749079835402,-430.0,0.00017171,2]
[364358183,1749079835411,-430.0,0.00017171,2]
[364358184,1749079835420,-430.0,0.00017171,2]
[364358185,1749079835429,-430.0,0.00017171,2]
[364358186,1749079835438,-430.0,0.00017171,2]
[364358187,1749079835447,-430.0,0.00017171,2]
[364358188,1749079835457,-375.26946204,0.00017442,2]
[364358201,1749079838441,-1027.47,0.00017442,2]
[364358202,1749079838451,-440.0,0.00017442,2]
[364358203,1749079838460,-1419.71,0.00017442,2]
[364358204,1749079838470,-440.0,0.00017442,2]
[364358205,1749079838479,-440.0,0.00017442,2]
[364358206,1749079838488,-497.98,0.00017442,2]
[364358207,1749079838498,-440.0,0.00017442,2]
[364358208,1749079838508,-440.0,0.00017442,2]
[364358209,1749079838517,-440.0,0.00017442,2]
[364358210,1749079838527,-440.0,0.00017442,2]
[364358211,1749079838535,-394.32061519,0.00017442,2]
[364358212,1749079838546,-620.95938481,0.00017442,2]
[364358213,1749079838556,-440.0,0.00017443,2]
[364358214,1749079838566,-440.0,0.00017443,2]
[364358215,1749079838575,-440.0,0.00017443,2]
[364358216,1749079838584,-627.79,0.00017443,2]
[364358217,1749079838594,-477.00316588,0.00017443,2]
[364358218,1749079838603,-1317.35,0.00017443,2]
[364358219,1749079838613,-440.0,0.00017443,2]
[364358220,1749079838624,-965.7,0.00017443,2]
[364358221,1749079838635,-440.0,0.00017443,2]
[364358222,1749079838644,-440.0,0.00017443,2]
[364358223,1749079838653,-575.21,0.00017443,2]
[364358224,1749079838663,-440.0,0.00017443,2]
[364358225,1749079838672,-440.0,0.00017443,2]
[364358226,1749079838681,-526.9,0.00017443,2]
[364358227,1749079838691,-440.0,0.00017443,2]
[364358228,1749079838700,-440.0,0.00017443,2]
[364358229,1749079838710,-440.0,0.00017443,2]
[364358230,1749079838719,-440.0,0.00017443,2]
[364358231,1749079838729,-440.0,0.00017443,2]
[364358232,1749079838738,-440.0,0.00017443,2]
[364358233,1749079838747,-440.0,0.00017443,2]
[364358234,1749079838760,-506.35,0.00017443,2]
[364358235,1749079838769,-390.0,0.00017443,2]
[364358236,1749079838779,-440.0,0.00017443,2]
[364358237,1749079838788,-440.0,0.00017443,2]
[364358238,1749079838798,-440.0,0.00017443,2]
[364358239,1749079838808,-440.0,0.00017444,2]
[364358240,1749079838817,-440.0,0.00017444,2]
[364358241,1749079838828,-440.0,0.00017444,2]
[364358242,1749079838838,-440.0,0.00017444,2]
[364358243,1749079838847,-440.0,0.00017444,2]
[364358244,1749079838858,-440.0,0.00017444,2]
[364358245,1749079838867,-440.0,0.00017444,2]
[364358246,1749079838876,-316.39791126,0.00017444,2]
[364358247,1749079838886,-440.0,0.00017444,2]
[364358248,1749079838895,-440.0,0.00017444,2]
[364358249,1749079838905,-400.0,0.00017444,2]
[364358250,1749079838914,-440.0,0.00017444,2]
[364358251,1749079838924,-440.0,0.00017444,2]
[364358252,1749079838933,-400.0,0.00017444,2]
[364358253,1749079838943,-400.0,0.00017444,2]
[364358254,1749079838952,-440.0,0.00017444,2]
[364358255,1749079838961,-400.0,0.00017444,2]
[364358256,1749079838970,-400.0,0.00017444,2]
[364358257,1749079838980,-400.0,0.00017444,2]
[364358258,1749079838989,-440.0,0.00017444,2]
[364358259,1749079838999,-179.93,0.00017709,3]
[364358260,1749079839008,-539.8,0.00017709,3]
[364358261,1749079839018,-1027.47,0.00017716,2]
[364358262,1749079839027,-440.0,0.00017716,2]
[364358263,1749079839037,-1419.71,0.00017716,2]
[364358264,1749079839046,-440.0,0.00017716,2]
[364358265,1749079839055,-440.0,0.00017716,2]
[364358266,1749079839065,-497.98,0.00017716,2]
[364358267,1749079839074,-440.0,0.00017716,2]
[364358268,1749079839084,-440.0,0.00017716,2]
[364358269,1749079839093,-556.93,0.00017716,2]
[364358270,1749079839102,-440.0,0.00017716,2]
[364358271,1749079839112,-1015.28,0.00017716,2]
[364358272,1749079839122,-410.0,0.00017717,2]
[364358273,1749079839131,-380.26,0.00017717,2]
[364358274,1749079839140,-440.0,0.00017717,2]
[364358275,1749079839149,-627.79,0.00017717,2]
[364358276,1749079839159,-1317.35,0.00017717,2]
[364358277,1749079839168,-965.7,0.00017717,2]
[364358278,1749079839177,-440.0,0.00017717,2]
[364358279,1749079839187,-440.0,0.00017717,2]
[364358280,1749079839196,-575.21,0.00017717,2]
[364358281,1749079839205,-440.0,0.00017717,2]
[364358282,1749079839214,-440.0,0.00017717,2]
[364358283,1749079839223,-526.9,0.00017717,2]
[364358284,1749079839233,-440.0,0.00017717,2]
[364358285,1749079839242,-440.0,0.00017717,2]
[364358286,1749079839252,-440.0,0.00017717,2]
[364358287,1749079839261,-440.0,0.00017717,2]
[364358288,1749079839271,-440.0,0.00017717,2]
[364358289,1749079839280,-440.0,0.00017717,2]
[364358290,1749079839289,-440.0,0.00017717,2]
[364358291,1749079839299,-506.35,0.00017717,2]
[364358292,1749079839308,-440.0,0.00017717,2]
[364358293,1749079839318,-440.0,0.00017717,2]
[364358294,1749079839326,-440.0,0.00017717,2]
[364358295,1749079839336,-440.0,0.00017718,2]
[364358296,1749079839346,-440.0,0.00017718,2]
[364358297,1749079839355,-440.0,0.00017718,2]
[364358298,1749079839365,-324.59,0.00017718,2]
[364358299,1749079839375,-232.98,0.00017718,2]
[364358300,1749079839384,-440.0,0.00017718,2]
[364358301,1749079839393,-500.0,0.00017718,2]
[364358302,1749079839403,-326.22087567,0.00017718,2]
[364358303,1749079839412,-263.15350842,0.00017718,2]
[364358304,1749079839423,-494.87,0.00017718,2]
[364358305,1749079839432,-388.35481803,0.00017718,2]
[364358306,1749079839542,-410.0,0.00017718,2]
[364358307,1749079839552,-440.0,0.00017718,2]
[364358308,1749079839561,-440.0,0.00017718,2]
[364358309,1749079839570,-1091.90353147,0.000179,2]
[364358310,1749079839580,-1027.47,0.0001799,2]
[364358311,1749079839590,-440.0,0.0001799,2]
[364358312,1749079839599,-1419.71,0.0001799,2]
[364358313,1749079839609,-440.0,0.0001799,2]
[364358314,1749079839618,-440.0,0.0001799,2]
[364358315,1749079839628,-497.98,0.0001799,2]
[364358316,1749079839637,-440.0,0.0001799,2]
[364358317,1749079839647,-440.0,0.0001799,2]
[364358318,1749079839656,-300.0,0.0001799,2]
[364358319,1749079839666,-1015.28,0.0001799,2]
[364358320,1749079839676,-440.0,0.00017991,2]
[364358321,1749079839686,-627.79,0.00017991,2]
[364358322,1749079839696,-1317.35,0.00017991,2]
[364358323,1749079839707,-965.7,0.00017991,2]
[364358324,1749079839716,-440.0,0.00017991,2]
[364358325,1749079839726,-440.0,0.00017991,2]
[364358326,1749079839735,-575.21,0.00017991,2]
[364358327,1749079839745,-440.0,0.00017991,2]
[364358328,1749079839758,-440.0,0.00017991,2]
[364358329,1749079839768,-526.9,0.00017991,2]
[364358330,1749079839778,-440.0,0.00017991,2]
[364358331,1749079839787,-440.0,0.00017991,2]
[364358332,1749079839797,-440.0,0.00017991,2]
[364358333,1749079839806,-440.0,0.00017991,2]
[364358334,1749079839816,-440.0,0.00017991,2]
[364358335,1749079839827,-440.0,0.00017991,2]
[364358336,1749079839836,-440.0,0.00017991,2]
[364358337,1749079839846,-506.35,0.00017991,2]
[364358338,1749079839856,-440.0,0.00017991,2]
[364358339,1749079839866,-440.0,0.00017991,2]
[364358340,1749079839875,-531.54,0.00017991,2]
[364358341,1749079839884,-440.0,0.00017992,2]
[364358342,1749079839894,-440.0,0.00017992,2]
[364358343,1749079839903,-440.0,0.00017992,2]
[364358344,1749079839913,-185.42,0.00017992,2]
[364358345,1749079839922,-383.83,0.00017992,2]
[364358346,1749079839931,-440.0,0.00017992,2]
[364358347,1749079839940,-365.39748356,0.00018026,2]
[364358348,1749079839950,-1091.90353123,0.00018141,2]
[364358349,1749079839959,-500.0,0.00018161,2]
[364358350,1749079839968,-154.17938525,0.00018161,2]
[364358351,1749079839978,-151.0,0.00018161,2]
[364358352,1749079839987,-151.0,0.00018161,2]
[364358353,1749079839997,-151.0,0.00018161,2]
[364358354,1749079840006,-208.48728359,0.00018161,2]
[364358355,1749079840016,-255.32674741,0.00018161,2]
[364358356,1749079840025,-500.0,0.00018161,2]
[364358357,1749079840035,-151.0,0.00018161,2]
[364358358,1749079840044,-240.511691,0.00018166,2]
[364358359,1749079840053,-500.0,0.00018188,2]
[364358360,1749079840063,-500.0,0.00018188,2]
[364358361,1749079840072,-500.0,0.00018216,2]
[364358362,1749079840082,-500.0,0.00018216,2]
[364358363,1749079840091,-500.0,0.00018243,2]
[364358364,1749079840100,-198.60315693,0.00018243,2]
[364358365,1749079840110,-167.39271525,0.00018244,2]
[364358366,1749079840120,-1027.47,0.00018264,2]
[364358367,1749079840129,-440.0,0.00018264,2]
[364358368,1749079840139,-1419.71,0.00018264,2]
[364358369,1749079840148,-440.0,0.00018264,2]
[364358370,1749079840158,-440.0,0.00018264,2]
[364358371,1749079840167,-497.98,0.00018264,2]
[364358372,1749079840177,-440.0,0.00018264,2]
[364358373,1749079840186,-440.0,0.00018264,2]
[364358374,1749079840196,-1015.28,0.00018264,2]
[364358375,1749079840205,-440.0,0.00018265,2]
[364358376,1749079840215,-627.79,0.00018265,2]
[364358377,1749079840224,-1317.35,0.00018265,2]
[364358378,1749079840234,-965.7,0.00018265,2]
[364358379,1749079840244,-440.0,0.00018265,2]
[364358380,1749079840253,-440.0,0.00018265,2]
[364358381,1749079840263,-575.21,0.00018265,2]
[364358382,1749079840272,-440.0,0.00018265,2]
[364358383,1749079840282,-440.0,0.00018265,2]
[364358384,1749079840291,-526.9,0.00018265,2]
[364358385,1749079840301,-440.0,0.00018265,2]
[364358386,1749079840311,-440.0,0.00018265,2]
[364358387,1749079840320,-440.0,0.00018265,2]
[364358388,1749079840330,-440.0,0.00018265,2]
[364358389,1749079840339,-440.0,0.00018265,2]
[364358390,1749079840349,-440.0,0.00018265,2]
[364358391,1749079840358,-440.0,0.00018265,2]
[364358392,1749079840368,-506.35,0.00018265,2]
[364358393,1749079840377,-440.0,0.00018265,2]
[364358395,1749079840387,-440.0,0.00018265,2]
[364358397,1749079840397,-440.0,0.00018266,2]
[364358399,1749079840407,-440.0,0.00018266,2]
[364358401,1749079840416,-330.0,0.00018266,2]
[364358403,1749079840425,-440.0,0.00018266,2]
[364358405,1749079840434,-633.51723044,0.00018268,2]
[364358407,1749079840443,-500.0,0.00018271,2]
[364358409,1749079840453,-500.0,0.00018298,2]
[364358411,1749079840462,-330.07135207,0.00018325,2]
[364358413,1749079840471,-350.55412938,0.00018334,2]
[364358415,1749079840480,-500.0,0.00018334,2]
[364358417,1749079840490,-1091.90353123,0.00018383,2]
[364358419,1749079840499,-151.0,0.00018432,2]
[364358420,1749079840510,-1027.47,0.00018538,2]
[364358422,1749079840519,-440.0,0.00018538,2]
[364358424,1749079840528,-1419.71,0.00018538,2]
[364358426,1749079840538,-440.0,0.00018538,2]
[364358429,1749079840549,-440.0,0.00018538,2]
[364358431,1749079840558,-497.98,0.00018538,2]
[364358433,1749079840568,-440.0,0.00018538,2]
[364358435,1749079840577,-440.0,0.00018538,2]
[364358437,1749079840587,-1015.28,0.00018538,2]
[364358439,1749079840596,-440.0,0.00018539,2]
[364358441,1749079840605,-627.79,0.00018539,2]
[364358442,1749079840615,-1317.35,0.00018539,2]
[364358445,1749079840626,-965.7,0.00018539,2]
[364358447,1749079840635,-247.1,0.00018539,2]
[364358448,1749079840644,-440.0,0.00018539,2]
[364358449,1749079840653,-575.21,0.00018539,2]
[364358451,1749079840662,-440.0,0.00018539,2]
[364358453,1749079840672,-577.64046884,0.00018539,2]
[364358455,1749079840684,-526.9,0.00018539,2]
[364358458,1749079840697,-440.0,0.00018539,2]
[364358460,1749079840710,-440.0,0.00018539,2]
[364358462,1749079840723,-440.0,0.00018539,2]
[364358464,1749079840735,-440.0,0.00018539,2]
[364358466,1749079840746,-440.0,0.00018539,2]
[364358469,1749079840762,-440.0,0.00018539,2]
[364358471,1749079840775,-440.0,0.00018539,2]
[364358473,1749079840787,-506.35,0.00018539,2]
[364358475,1749079840799,-440.0,0.00018539,2]
[364358477,1749079840811,-440.0,0.00018539,2]
[364358480,1749079840823,-182.1,0.0001854,2]
[364358482,1749079840838,-440.0,0.0001854,2]
[364358484,1749079840850,-440.0,0.0001854,2]
[364358486,1749079840863,-440.0,0.0001854,2]
[364358489,1749079840876,-151.0,0.00018541,2]
[364358491,1749079840891,-1091.90353123,0.00018624,2]
[364358493,1749079840904,-420.0,0.00018747,2]
[364358495,1749079840916,-1027.47,0.00018812,2]
[364358498,1749079840928,-440.0,0.00018812,2]
[364358500,1749079840940,-1419.71,0.00018812,2]
[364358502,1749079840951,-440.0,0.00018812,2]
[364358504,1749079840962,-388.52,0.00018812,2]
[364358506,1749079840975,-497.98,0.00018812,2]
[364358508,1749079840987,-440.0,0.00018812,2]
[364358511,1749079840999,-440.0,0.00018812,2]